[Event "Late-Titled-Tuesday-Blitz-April-23-2024"]
[Site "Chess.com"]
[Date "2024.04.23"]
[Round "1"]
[White "Oleksandr_Bortnyk"]
[Black "JG-17"]
[Result "1-0"]
[WhiteElo "3118"]
[BlackElo "2540"]
[TimeControl "180+1"]
[EndTime "14:07:12 PDT"]
[Termination "Oleksandr_Bortnyk won on time"]

1. e4 {[%clk 0:02:58.4]} 1... c5 {[%clk 0:03:00.1]} 2. c3 {[%clk 0:02:57.5]}
2... Nf6 {[%clk 0:02:56.1]} 3. e5 {[%clk 0:02:57]} 3... Nd5 {[%clk 0:02:56.4]}
4. d4 {[%clk 0:02:57.8]} 4... cxd4 {[%clk 0:02:54.8]} 5. Qxd4 {[%clk 0:02:56.3]}
5... e6 {[%clk 0:02:54]} 6. Nf3 {[%clk 0:02:56.7]} 6... Nc6 {[%clk 0:02:53.7]}
7. Qe4 {[%clk 0:02:57.1]} 7... f5 {[%clk 0:02:54.3]} 8. Qe2 {[%clk 0:02:55.2]}
8... b5 {[%clk 0:02:54.3]} 9. g3 {[%clk 0:02:50.4]} 9... a5 {[%clk 0:02:48.8]}
10. Bg2 {[%clk 0:02:50]} 10... Be7 {[%clk 0:02:29.1]} 11. O-O {[%clk 0:02:50.3]}
11... O-O {[%clk 0:02:28.8]} 12. Rd1 {[%clk 0:02:50.3]} 12... Qc7 {[%clk
0:02:27.4]} 13. Nbd2 {[%clk 0:02:47.4]} 13... Ba6 {[%clk 0:02:18.3]} 14. Nb3
{[%clk 0:02:47]} 14... b4 {[%clk 0:02:03.6]} 15. Qe1 {[%clk 0:02:45.3]} 15... a4
{[%clk 0:01:56.8]} 16. Nbd4 {[%clk 0:02:43.3]} 16... bxc3 {[%clk 0:01:55.6]} 17.
bxc3 {[%clk 0:02:44.2]} 17... Rac8 {[%clk 0:01:37.6]} 18. h4 {[%clk 0:02:41.4]}
18... Na5 {[%clk 0:01:19.3]} 19. Bg5 {[%clk 0:02:40.6]} 19... Qxc3 {[%clk
0:01:06.8]} 20. Bd2 {[%clk 0:02:37.7]} 20... Qc5 {[%clk 0:01:03]} 21. Bxa5
{[%clk 0:02:37.7]} 21... h6 {[%clk 0:00:56.3]} 22. h5 {[%clk 0:02:36.4]} 22...
a3 {[%clk 0:00:55.1]} 23. Rac1 {[%clk 0:02:35.7]} 23... Qa7 {[%clk 0:00:53.5]}
24. Rxc8 {[%clk 0:02:35.3]} 24... Rxc8 {[%clk 0:00:54.4]} 25. Nxf5 {[%clk
0:02:35.8]} 25... Bf8 {[%clk 0:00:51.9]} 26. Nd6 {[%clk 0:02:23.6]} 26... Rc2
{[%clk 0:00:49.4]} 27. Rd2 {[%clk 0:02:23.7]} 27... Rb2 {[%clk 0:00:46.2]} 28.
Rxb2 {[%clk 0:02:17.3]} 28... axb2 {[%clk 0:00:46.3]} 29. Qb1 {[%clk 0:02:16.9]}
29... Qb8 {[%clk 0:00:39.8]} 30. Nd2 {[%clk 0:02:15.6]} 30... Be2 {[%clk
0:00:16.9]} 31. Bxd5 {[%clk 0:02:11.7]} 31... exd5 {[%clk 0:00:16.5]} 32. Nb3
{[%clk 0:02:10.2]} 32... Bxd6 {[%clk 0:00:15.4]} 33. exd6 {[%clk 0:02:11.1]}
33... Qxd6 {[%clk 0:00:11.6]} 34. Qxb2 {[%clk 0:02:10.7]} 34... Bc4 {[%clk
0:00:11.2]} 35. Bc3 {[%clk 0:02:06.9]} 35... Qe6 {[%clk 0:00:11.4]} 36. Nd4
{[%clk 0:01:58.1]} 36... Qh3 {[%clk 0:00:08.7]} 37. Qb8+ {[%clk 0:01:54.6]}
37... Kh7 {[%clk 0:00:06.9]} 38. Qb1+ {[%clk 0:01:55]} 38... Kg8 {[%clk
0:00:06.2]} 39. Nf5 {[%clk 0:01:40.1]} 39... Qxh5 {[%clk 0:00:04.3]} 40. Bxg7
{[%clk 0:01:33.1]} 40... Qf3 {[%clk 0:00:02.4]} 41. Bxh6 {[%clk 0:01:29.8]}
41... Bd3 {[%clk 0:00:02]} 42. Qb8+ {[%clk 0:01:11.1]} 42... Kh7 {[%clk
0:00:01.7]} 43. Qf8 {[%clk 0:00:46.8]} 43... Qd1+ {[%clk 0:00:01.6]} 44. Kh2
{[%clk 0:00:47.6]} 44... Qh5+ {[%clk 0:00:02]} 45. Kg1 {[%clk 0:00:47]} 45...
Qd1+ {[%clk 0:00:02.2]} 46. Kh2 {[%clk 0:00:47.7]} 46... Qh5+ {[%clk 0:00:02.9]}
47. Nh4 {[%clk 0:00:48.5]} 47... Qxh6 {[%clk 0:00:03.2]} 48. Qf7+ {[%clk
0:00:49]} 48... Kh8 {[%clk 0:00:02.3]} 49. Qxd5 {[%clk 0:00:49.9]} 49... Bh7
{[%clk 0:00:01.2]} 50. Qxd7 {[%clk 0:00:49]} 50... Qh5 {[%clk 0:00:01.3]} 51.
Qd4+ {[%clk 0:00:45.6]} 1-0

[Event "Late-Titled-Tuesday-Blitz-April-23-2024"]
[Site "Chess.com"]
[Date "2024.04.23"]
[Round "1"]
[White "PavelShkapenko"]
[Black "prochn"]
[Result "1/2-1/2"]
[WhiteElo "2771"]
[BlackElo "2457"]
[TimeControl "180+1"]
[EndTime "14:07:13 PDT"]
[Termination "Game drawn by agreement"]

1. e4 {[%clk 0:03:00.9]} 1... c6 {[%clk 0:02:58.1]} 2. d4 {[%clk 0:03:00.3]}
2... d5 {[%clk 0:02:57]} 3. e5 {[%clk 0:03:00.9]} 3... Bf5 {[%clk 0:02:56.7]} 4.
h4 {[%clk 0:02:54.9]} 4... h5 {[%clk 0:02:56.3]} 5. Bd3 {[%clk 0:02:55.1]} 5...
Bxd3 {[%clk 0:02:55.6]} 6. Qxd3 {[%clk 0:02:56]} 6... Qa5+ {[%clk 0:02:55.8]} 7.
Nd2 {[%clk 0:02:55.9]} 7... e6 {[%clk 0:02:40.4]} 8. Ne2 {[%clk 0:02:54.2]} 8...
Nh6 {[%clk 0:02:29.7]} 9. O-O {[%clk 0:02:53.7]} 9... Nf5 {[%clk 0:02:29.6]} 10.
Nf3 {[%clk 0:02:53.9]} 10... Be7 {[%clk 0:02:28.8]} 11. Bg5 {[%clk 0:02:53.4]}
11... Nd7 {[%clk 0:02:08.1]} 12. Ng3 {[%clk 0:02:51.7]} 12... Nxg3 {[%clk
0:02:00.4]} 13. fxg3 {[%clk 0:02:51.6]} 13... Qa6 {[%clk 0:01:48.5]} 14. Qd2
{[%clk 0:02:51.3]} 14... f6 {[%clk 0:01:39]} 15. exf6 {[%clk 0:02:52.2]} 15...
gxf6 {[%clk 0:01:39.1]} 16. Rae1 {[%clk 0:02:35.9]} 16... c5 {[%clk 0:01:16.2]}
17. Bf4 {[%clk 0:02:08]} 17... O-O-O {[%clk 0:01:14.9]} 18. c3 {[%clk
0:02:08.3]} 18... Rhg8 {[%clk 0:01:13.9]} 19. Qc2 {[%clk 0:01:57.4]} 19... Rg7
{[%clk 0:01:05.1]} 20. b4 {[%clk 0:01:57.5]} 20... c4 {[%clk 0:01:02.3]} 21. a4
{[%clk 0:01:57.4]} 21... Nf8 {[%clk 0:00:53.9]} 22. Re2 {[%clk 0:01:42.4]} 22...
Bd6 {[%clk 0:00:53]} 23. Qd2 {[%clk 0:01:25.3]} 23... Qc6 {[%clk 0:00:47.6]} 24.
Kh2 {[%clk 0:00:58.3]} 24... Qc7 {[%clk 0:00:47.4]} 25. Bxd6 {[%clk 0:00:49.5]}
25... Qxd6 {[%clk 0:00:47]} 26. Qf4 {[%clk 0:00:50.2]} 26... Qxf4 {[%clk
0:00:07.8]} 27. gxf4 {[%clk 0:00:51.1]} 27... Rg4 {[%clk 0:00:08.4]} 28. g3
{[%clk 0:00:49.6]} 28... Kd7 {[%clk 0:00:08.6]} 29. Rfe1 {[%clk 0:00:46.2]}
29... Re8 {[%clk 0:00:06.4]} 30. f5 {[%clk 0:00:44.5]} 30... Rg7 {[%clk
0:00:05.4]} 31. Ng1 {[%clk 0:00:38.6]} 31... Rge7 {[%clk 0:00:05.2]} 32. Nh3
{[%clk 0:00:39.2]} 32... exf5 {[%clk 0:00:05.5]} 33. Rxe7+ {[%clk 0:00:39.3]}
33... Rxe7 {[%clk 0:00:06.1]} 34. Rxe7+ {[%clk 0:00:40]} 34... Kxe7 {[%clk
0:00:06.6]} 35. Nf4 {[%clk 0:00:40.8]} 35... Kd6 {[%clk 0:00:05.7]} 36. Nxh5
{[%clk 0:00:40.9]} 36... Ne6 {[%clk 0:00:05.9]} 37. Nf4 {[%clk 0:00:33.8]} 37...
Nxf4 {[%clk 0:00:05.8]} 38. gxf4 {[%clk 0:00:33.6]} 38... Ke6 {[%clk 0:00:06.4]}
39. Kg2 {[%clk 0:00:32.5]} 39... Kf7 {[%clk 0:00:06.6]} 40. Kh2 {[%clk
0:00:25.1]} 1/2-1/2

[Event "Late-Titled-Tuesday-Blitz-April-23-2024"]
[Site "Chess.com"]
[Date "2024.04.23"]
[Round "1"]
[White "merinasian"]
[Black "TheSilmarils"]
[Result "0-1"]
[WhiteElo "2518"]
[BlackElo "2965"]
[TimeControl "180+1"]
[EndTime "14:07:16 PDT"]
[Termination "TheSilmarils won on time"]

1. d4 {[%clk 0:03:00.9]} 1... Nf6 {[%clk 0:02:59.2]} 2. Nf3 {[%clk 0:02:59.6]}
2... d5 {[%clk 0:02:56.5]} 3. c4 {[%clk 0:02:58.2]} 3... e6 {[%clk 0:02:56.6]}
4. e3 {[%clk 0:02:58.5]} 4... a6 {[%clk 0:02:55.9]} 5. Nbd2 {[%clk 0:02:55.5]}
5... c5 {[%clk 0:02:53.2]} 6. Bd3 {[%clk 0:02:48.2]} 6... Nc6 {[%clk 0:02:44.4]}
7. dxc5 {[%clk 0:02:40.4]} 7... Bxc5 {[%clk 0:02:43.1]} 8. a3 {[%clk 0:02:40.3]}
8... dxc4 {[%clk 0:02:17.3]} 9. Nxc4 {[%clk 0:02:37]} 9... b5 {[%clk 0:02:17.2]}
10. Nce5 {[%clk 0:02:32.2]} 10... Nxe5 {[%clk 0:02:16.1]} 11. Nxe5 {[%clk
0:02:32.3]} 11... Bb7 {[%clk 0:02:01.6]} 12. O-O {[%clk 0:02:31.1]} 12... O-O
{[%clk 0:01:51.7]} 13. b4 {[%clk 0:02:30.4]} 13... Qd5 {[%clk 0:01:07.3]} 14.
Nf3 {[%clk 0:02:28.3]} 14... Bd6 {[%clk 0:01:07.5]} 15. Bb2 {[%clk 0:02:09.9]}
15... Qh5 {[%clk 0:01:07]} 16. h3 {[%clk 0:01:39.9]} 16... Rad8 {[%clk
0:01:05.6]} 17. Qe2 {[%clk 0:01:17.7]} 17... Ne4 {[%clk 0:00:57.1]} 18. Rfd1
{[%clk 0:01:00.2]} 18... Ng5 {[%clk 0:00:56.7]} 19. Nxg5 {[%clk 0:00:55.1]}
19... Qxg5 {[%clk 0:00:57.6]} 20. f4 {[%clk 0:00:51.8]} 20... Qe7 {[%clk
0:00:54.2]} 21. Qh5 {[%clk 0:00:42.9]} 21... g6 {[%clk 0:00:46.9]} 22. Qh6
{[%clk 0:00:38.2]} 22... e5 {[%clk 0:00:46.8]} 23. f5 {[%clk 0:00:34.7]} 23...
Bb8 {[%clk 0:00:33.1]} 24. Be2 {[%clk 0:00:27.3]} 24... gxf5 {[%clk 0:00:25.9]}
25. Qh5 {[%clk 0:00:18.7]} 25... Qe6 {[%clk 0:00:22.7]} 26. Rf1 {[%clk
0:00:16.5]} 26... Be4 {[%clk 0:00:20.1]} 27. Bf3 {[%clk 0:00:15.3]} 27... Qg6
{[%clk 0:00:16.5]} 28. Qh4 {[%clk 0:00:14.5]} 28... Kh8 {[%clk 0:00:13.7]} 29.
Bxe4 {[%clk 0:00:14.2]} 29... fxe4 {[%clk 0:00:14.6]} 30. Rf6 {[%clk 0:00:13.9]}
30... Qg7 {[%clk 0:00:15.2]} 31. Raf1 {[%clk 0:00:13.5]} 31... Rd2 {[%clk
0:00:15]} 32. R1f2 {[%clk 0:00:09]} 32... Rxf2 {[%clk 0:00:15.5]} 33. Rxf2
{[%clk 0:00:08.5]} 33... f5 {[%clk 0:00:16.2]} 34. Rd2 {[%clk 0:00:05.7]} 34...
Rg8 {[%clk 0:00:12.7]} 35. Qf2 {[%clk 0:00:04.8]} 35... Qf7 {[%clk 0:00:10.1]}
0-1

[Event "Late-Titled-Tuesday-Blitz-April-23-2024"]
[Site "Chess.com"]
[Date "2024.04.23"]
[Round "1"]
[White "NajdorfPlayerc5"]
[Black "Vladimir_2020"]
[Result "1/2-1/2"]
[WhiteElo "2454"]
[BlackElo "2763"]
[TimeControl "180+1"]
[EndTime "14:07:18 PDT"]
[Termination "Game drawn by repetition"]

1. e4 {[%clk 0:02:52.8]} 1... e5 {[%clk 0:02:58.7]} 2. Nf3 {[%clk 0:02:53.1]}
2... Nc6 {[%clk 0:02:58.8]} 3. Bb5 {[%clk 0:02:51.6]} 3... Nf6 {[%clk
0:02:58.1]} 4. O-O {[%clk 0:02:42.7]} 4... Nxe4 {[%clk 0:02:57.7]} 5. d4 {[%clk
0:02:35.7]} 5... Nd6 {[%clk 0:02:57.2]} 6. dxe5 {[%clk 0:02:26.6]} 6... Nxb5
{[%clk 0:02:56.6]} 7. a4 {[%clk 0:02:26.7]} 7... d6 {[%clk 0:02:56.3]} 8. axb5
{[%clk 0:02:23]} 8... Nxe5 {[%clk 0:02:55.2]} 9. Re1 {[%clk 0:02:19.2]} 9... Be7
{[%clk 0:02:50.3]} 10. Nxe5 {[%clk 0:02:17.8]} 10... dxe5 {[%clk 0:02:50.4]} 11.
Qxd8+ {[%clk 0:02:18.5]} 11... Bxd8 {[%clk 0:02:48.9]} 12. Rxe5+ {[%clk
0:02:18.9]} 12... Be6 {[%clk 0:02:49.1]} 13. Nc3 {[%clk 0:02:13.4]} 13... O-O
{[%clk 0:02:34.3]} 14. Bg5 {[%clk 0:02:11]} 14... Bxg5 {[%clk 0:02:25.9]} 15.
Rxg5 {[%clk 0:02:11.9]} 15... Rfd8 {[%clk 0:02:25.8]} 16. Re5 {[%clk 0:02:11.6]}
16... Kf8 {[%clk 0:02:19.4]} 17. Ree1 {[%clk 0:01:59.3]} 17... Bf5 {[%clk
0:02:17.1]} 18. Re2 {[%clk 0:01:56.3]} 18... Rd6 {[%clk 0:02:13.9]} 19. f3
{[%clk 0:01:54.4]} 19... h5 {[%clk 0:02:12.9]} 20. Kf2 {[%clk 0:01:39.1]} 20...
a5 {[%clk 0:02:07.1]} 21. bxa6 {[%clk 0:01:36]} 21... Rdxa6 {[%clk 0:02:03.6]}
22. Rxa6 {[%clk 0:01:20.9]} 22... Rxa6 {[%clk 0:02:03.1]} 23. Nb5 {[%clk
0:01:20.8]} 23... g6 {[%clk 0:01:59.4]} 24. Nxc7 {[%clk 0:01:03.1]} 24... Rc6
{[%clk 0:01:59.2]} 25. Nb5 {[%clk 0:00:54.5]} 25... Rxc2 {[%clk 0:01:57]} 26.
Nd6 {[%clk 0:00:39.7]} 26... Rc5 {[%clk 0:01:41.4]} 27. Nxb7 {[%clk 0:00:29.3]}
27... Rd5 {[%clk 0:01:41]} 28. b4 {[%clk 0:00:29]} 28... Rb5 {[%clk 0:01:40.4]}
29. Nd6 {[%clk 0:00:28.2]} 29... Rxb4 {[%clk 0:01:40.2]} 30. Nxf5 {[%clk
0:00:20.2]} 30... gxf5 {[%clk 0:01:40]} 31. Re5 {[%clk 0:00:18.1]} 31... Kg7
{[%clk 0:01:40.2]} 32. Rxf5 {[%clk 0:00:17.9]} 32... Kg6 {[%clk 0:01:40.5]} 33.
Re5 {[%clk 0:00:18.4]} 33... f6 {[%clk 0:01:40.2]} 34. Re2 {[%clk 0:00:18.6]}
34... Ra4 {[%clk 0:01:40.2]} 35. Kg3 {[%clk 0:00:17.7]} 35... Rb4 {[%clk
0:01:40]} 36. Kh3 {[%clk 0:00:18]} 36... Ra4 {[%clk 0:01:40.1]} 37. g3 {[%clk
0:00:17.8]} 37... Ra3 {[%clk 0:01:39.6]} 38. f4 {[%clk 0:00:15.3]} 38... Ra5
{[%clk 0:01:30.5]} 39. Kh4 {[%clk 0:00:15.4]} 39... Rb5 {[%clk 0:01:30.6]} 40.
h3 {[%clk 0:00:15.1]} 40... Ra5 {[%clk 0:01:30.5]} 41. Re8 {[%clk 0:00:14.9]}
41... Rb5 {[%clk 0:01:28.3]} 42. Rg8+ {[%clk 0:00:14]} 42... Kf7 {[%clk
0:01:26.5]} 43. Rh8 {[%clk 0:00:11.5]} 43... Kg6 {[%clk 0:01:26.6]} 44. Rg8+
{[%clk 0:00:11.5]} 44... Kf7 {[%clk 0:01:26.8]} 45. Rd8 {[%clk 0:00:11.4]} 45...
Kg6 {[%clk 0:01:26.8]} 46. Rd7 {[%clk 0:00:11.8]} 46... Ra5 {[%clk 0:01:23]} 47.
Rd3 {[%clk 0:00:11.8]} 47... Rb5 {[%clk 0:01:22.9]} 48. Rf3 {[%clk 0:00:12.4]}
48... Ra5 {[%clk 0:01:20.7]} 49. Rd3 {[%clk 0:00:08.2]} 49... Rb5 {[%clk
0:01:20.5]} 50. Rd6 {[%clk 0:00:05]} 50... Ra5 {[%clk 0:01:20.4]} 51. g4 {[%clk
0:00:05.3]} 51... hxg4 {[%clk 0:01:18.5]} 52. hxg4 {[%clk 0:00:06.2]} 52... Kg7
{[%clk 0:01:13.9]} 53. Rd7+ {[%clk 0:00:05.8]} 53... Kf8 {[%clk 0:01:01.6]} 54.
f5 {[%clk 0:00:03.8]} 54... Ra4 {[%clk 0:01:01.7]} 55. Kh5 {[%clk 0:00:03.6]}
55... Kg8 {[%clk 0:01:01.8]} 56. Rd3 {[%clk 0:00:02.6]} 56... Kg7 {[%clk
0:01:01]} 57. Rd7+ {[%clk 0:00:03.1]} 57... Kg8 {[%clk 0:01:01.1]} 58. Rd6
{[%clk 0:00:03.8]} 58... Kg7 {[%clk 0:01:00.7]} 59. Rd7+ {[%clk 0:00:04.4]}
59... Kg8 {[%clk 0:01:00.5]} 1/2-1/2

[Event "Late-Titled-Tuesday-Blitz-April-23-2024"]
[Site "Chess.com"]
[Date "2024.04.23"]
[Round "1"]
[White "jinxy2009"]
[Black "andrew-blr"]
[Result "1-0"]
[WhiteElo "2310"]
[BlackElo "2610"]
[TimeControl "180+1"]
[EndTime "14:07:18 PDT"]
[Termination "jinxy2009 won by checkmate"]

1. e4 {[%clk 0:02:57.8]} 1... c5 {[%clk 0:02:59.9]} 2. Nf3 {[%clk 0:02:57.8]}
2... e6 {[%clk 0:02:59.8]} 3. d4 {[%clk 0:02:57.6]} 3... cxd4 {[%clk 0:03:00]}
4. Nxd4 {[%clk 0:02:58.5]} 4... Bc5 {[%clk 0:03:00.3]} 5. Nb3 {[%clk 0:02:58.1]}
5... Bb6 {[%clk 0:02:58]} 6. Nc3 {[%clk 0:02:56.5]} 6... Ne7 {[%clk 0:02:57.4]}
7. Qe2 {[%clk 0:02:56.2]} 7... O-O {[%clk 0:02:56.9]} 8. Be3 {[%clk 0:02:55.7]}
8... Bxe3 {[%clk 0:02:56.7]} 9. Qxe3 {[%clk 0:02:56.6]} 9... f5 {[%clk
0:02:57.2]} 10. O-O-O {[%clk 0:02:48.3]} 10... Nbc6 {[%clk 0:02:53.9]} 11. f4
{[%clk 0:02:26.2]} 11... fxe4 {[%clk 0:02:48.2]} 12. Nxe4 {[%clk 0:02:24.5]}
12... Nf5 {[%clk 0:02:47.9]} 13. Qh3 {[%clk 0:02:17.6]} 13... d5 {[%clk
0:02:47.4]} 14. Ng5 {[%clk 0:02:17.8]} 14... h6 {[%clk 0:02:46.7]} 15. Nf3
{[%clk 0:02:18.1]} 15... e5 {[%clk 0:02:38.9]} 16. Nxe5 {[%clk 0:02:14.6]} 16...
Nxe5 {[%clk 0:02:36.6]} 17. fxe5 {[%clk 0:02:15.5]} 17... Qg5+ {[%clk
0:02:33.7]} 18. Rd2 {[%clk 0:02:01.4]} 18... Ne3 {[%clk 0:02:33.1]} 19. Qg3
{[%clk 0:01:37]} 19... Qxg3 {[%clk 0:02:31.1]} 20. hxg3 {[%clk 0:01:37.2]} 20...
Rxf1+ {[%clk 0:02:31.6]} 21. Rxf1 {[%clk 0:01:37.3]} 21... Nxf1 {[%clk
0:02:32.2]} 22. Rd3 {[%clk 0:01:37.7]} 22... Be6 {[%clk 0:02:06.5]} 23. Nc5
{[%clk 0:01:37.1]} 23... Re8 {[%clk 0:02:01.9]} 24. Nxb7 {[%clk 0:01:37]} 24...
Rf8 {[%clk 0:01:59.4]} 25. Nc5 {[%clk 0:01:35.2]} 25... Bf5 {[%clk 0:01:59.5]}
26. Rxd5 {[%clk 0:01:27]} 26... Ne3 {[%clk 0:01:57.7]} 27. Rd6 {[%clk
0:01:21.7]} 27... Nxc2 {[%clk 0:01:54.6]} 28. g4 {[%clk 0:01:16.1]} 28... Bh7
{[%clk 0:01:53.8]} 29. Ne6 {[%clk 0:01:10.3]} 29... Rc8 {[%clk 0:01:50.1]} 30.
Kd2 {[%clk 0:01:01.2]} 30... Bg6 {[%clk 0:01:32.4]} 31. Rd7 {[%clk 0:01:00.1]}
31... Bf7 {[%clk 0:01:29.3]} 32. Nf4 {[%clk 0:00:57.7]} 32... Nb4 {[%clk
0:01:20.6]} 33. e6 {[%clk 0:00:52]} 33... Be8 {[%clk 0:01:20.9]} 34. Rxa7 {[%clk
0:00:51.5]} 34... Rc2+ {[%clk 0:01:17.3]} 35. Ke3 {[%clk 0:00:51.7]} 35... Rxb2
{[%clk 0:01:12.8]} 36. Ra8 {[%clk 0:00:51.4]} 36... Kf8 {[%clk 0:01:12.7]} 37.
Ng6+ {[%clk 0:00:51.8]} 37... Kg8 {[%clk 0:01:12]} 38. Rxe8+ {[%clk 0:00:51.8]}
38... Kh7 {[%clk 0:01:12.6]} 39. Nf8+ {[%clk 0:00:47.8]} 39... Kg8 {[%clk
0:01:12.8]} 40. Nd7+ {[%clk 0:00:41.4]} 40... Kh7 {[%clk 0:01:12.5]} 41. e7
{[%clk 0:00:41.9]} 41... Nd5+ {[%clk 0:01:07.2]} 42. Ke4 {[%clk 0:00:42.3]}
42... Nc7 {[%clk 0:01:00.3]} 43. Rc8 {[%clk 0:00:39.4]} 43... Re2+ {[%clk
0:00:59.8]} 44. Kf3 {[%clk 0:00:39.6]} 44... Rxe7 {[%clk 0:00:57.5]} 45. Rxc7
{[%clk 0:00:40.1]} 45... Rf7+ {[%clk 0:00:55.2]} 46. Kg3 {[%clk 0:00:39.1]}
46... Rf1 {[%clk 0:00:55.1]} 47. a4 {[%clk 0:00:38]} 47... Ra1 {[%clk
0:00:54.8]} 48. Ra7 {[%clk 0:00:38.2]} 48... Kg6 {[%clk 0:00:54.9]} 49. Ne5+
{[%clk 0:00:34.8]} 49... Kf6 {[%clk 0:00:53.7]} 50. Nc6 {[%clk 0:00:35]} 50...
Kg5 {[%clk 0:00:51.7]} 51. a5 {[%clk 0:00:32.4]} 51... Ra3+ {[%clk 0:00:50.4]}
52. Kh2 {[%clk 0:00:32.1]} 52... g6 {[%clk 0:00:49.3]} 53. a6 {[%clk 0:00:32.3]}
53... Kxg4 {[%clk 0:00:49.2]} 54. Rg7 {[%clk 0:00:30]} 54... g5 {[%clk
0:00:49.2]} 55. a7 {[%clk 0:00:30]} 55... Kh4 {[%clk 0:00:49.4]} 56. Rg8 {[%clk
0:00:30]} 56... g4 {[%clk 0:00:49.5]} 57. a8=Q {[%clk 0:00:23.8]} 57... g3+
{[%clk 0:00:49.1]} 58. Kg1 {[%clk 0:00:24]} 58... h5 {[%clk 0:00:45.1]} 59. Qd8#
{[%clk 0:00:21.2]} 1-0

[Event "Late-Titled-Tuesday-Blitz-April-23-2024"]
[Site "Chess.com"]
[Date "2024.04.23"]
[Round "1"]
[White "Bilan_Danila"]
[Black "Vulcan_o"]
[Result "1-0"]
[WhiteElo "2550"]
[BlackElo "1443"]
[TimeControl "180+1"]
[EndTime "14:07:25 PDT"]
[Termination "Bilan_Danila won on time"]

1. d4 {[%clk 0:02:59.5]} 1... d5 {[%clk 0:02:58.9]} 2. Nf3 {[%clk 0:02:59.8]}
2... Nf6 {[%clk 0:02:58.9]} 3. c4 {[%clk 0:03:00]} 3... e6 {[%clk 0:02:59]} 4.
Nc3 {[%clk 0:02:57.8]} 4... Be7 {[%clk 0:02:59.2]} 5. Bg5 {[%clk 0:02:56.3]}
5... a6 {[%clk 0:02:57.4]} 6. e3 {[%clk 0:02:56.4]} 6... dxc4 {[%clk 0:02:56.7]}
7. Bxc4 {[%clk 0:02:56.2]} 7... b5 {[%clk 0:02:56.8]} 8. Bd3 {[%clk 0:02:56.2]}
8... Bb7 {[%clk 0:02:55.3]} 9. Qc2 {[%clk 0:02:52.9]} 9... h6 {[%clk 0:02:53.6]}
10. Bh4 {[%clk 0:02:52.7]} 10... Nbd7 {[%clk 0:02:53.1]} 11. O-O {[%clk
0:02:50.7]} 11... O-O {[%clk 0:02:46.8]} 12. Rad1 {[%clk 0:02:44]} 12... Qe8
{[%clk 0:02:40.7]} 13. Ne4 {[%clk 0:02:34.1]} 13... Rc8 {[%clk 0:02:31.1]} 14.
Nc5 {[%clk 0:02:30.2]} 14... Nxc5 {[%clk 0:02:25.4]} 15. dxc5 {[%clk 0:02:30.1]}
15... Bc6 {[%clk 0:02:12.4]} 16. Ne5 {[%clk 0:02:22.3]} 16... Nd5 {[%clk
0:02:09]} 17. Bxe7 {[%clk 0:02:13.4]} 17... Nxe7 {[%clk 0:02:01.2]} 18. Bh7+
{[%clk 0:01:59.4]} 18... Kh8 {[%clk 0:01:58.2]} 19. Be4 {[%clk 0:01:58.4]} 19...
Kg8 {[%clk 0:01:38.9]} 20. Bxc6 {[%clk 0:01:54.6]} 20... Nxc6 {[%clk 0:01:38.2]}
21. Nd7 {[%clk 0:01:55.1]} 21... Qe7 {[%clk 0:01:24.6]} 22. Nxf8 {[%clk
0:01:53.4]} 22... Rxf8 {[%clk 0:01:23]} 23. Qe4 {[%clk 0:01:48.6]} 23... Nb8
{[%clk 0:01:05.1]} 24. b4 {[%clk 0:01:43.8]} 24... f5 {[%clk 0:00:58.3]} 25. Qb7
{[%clk 0:01:31.4]} 25... g5 {[%clk 0:00:42.9]} 26. Rd3 {[%clk 0:01:25.2]} 26...
g4 {[%clk 0:00:33]} 27. Rfd1 {[%clk 0:01:21.2]} 27... h5 {[%clk 0:00:27.4]} 28.
g3 {[%clk 0:01:05.3]} 28... h4 {[%clk 0:00:24.8]} 29. Qg2 {[%clk 0:01:05.8]}
29... hxg3 {[%clk 0:00:18.7]} 30. hxg3 {[%clk 0:01:01.2]} 30... Kg7 {[%clk
0:00:18.6]} 31. Kf1 {[%clk 0:00:56.7]} 31... Rh8 {[%clk 0:00:17.7]} 32. Ke2
{[%clk 0:00:56.7]} 32... Qf6 {[%clk 0:00:14.1]} 33. Qb7 {[%clk 0:00:49.7]} 33...
Qb2+ {[%clk 0:00:11.4]} 34. R1d2 {[%clk 0:00:46.3]} 34... Qxb4 {[%clk
0:00:10.5]} 35. Qxc7+ {[%clk 0:00:45.4]} 35... Kf6 {[%clk 0:00:09.3]} 36. Qf4
{[%clk 0:00:35.4]} 36... Qxc5 {[%clk 0:00:06.4]} 37. Qd4+ {[%clk 0:00:30]} 37...
Qe5 {[%clk 0:00:01.4]} 38. Qxe5+ {[%clk 0:00:25.3]} 38... Kxe5 {[%clk
0:00:01.1]} 39. Rd8 {[%clk 0:00:26.2]} 1-0